fUST/lending_fUST_20260405
["ID","MTS","AMOUNT","RATE_DAILY","PERIOD"]
[419707749,1775327454624,-151.0,0.0002268,2]
[419707750,1775327454634,-281.475561,0.0002268,2]
[419707751,1775327454643,-151.0,0.0002268,2]
[419707752,1775327454652,-151.0,0.0002268,2]
[419707753,1775327454662,-151.0,0.0002268,2]
[419707754,1775327454671,-203.796821,0.0002268,2]
[419707755,1775327454680,-151.0,0.0002268,2]
[419707756,1775327454690,-203.796821,0.0002268,2]
[419707757,1775327454700,-222.353791,0.0002268,2]
[419707758,1775327454710,-203.796821,0.0002268,2]
[419707759,1775327454719,-203.796821,0.0002268,2]
[419707760,1775327454728,-203.796821,0.0002268,2]
[419707761,1775327454738,-203.796821,0.0002268,2]
[419707762,1775327454748,-203.796821,0.0002268,2]
[419707763,1775327454758,-203.796821,0.0002268,2]
[419707764,1775327454767,-203.796821,0.0002268,2]
[419707765,1775327454778,-203.796821,0.0002268,2]
[419707766,1775327454788,-203.796821,0.0002268,2]
[419707767,1775327454798,-203.796821,0.0002268,2]
[419707768,1775327454807,-203.796821,0.0002268,2]
[419707769,1775327454817,-203.796821,0.0002268,2]
[419707770,1775327454827,-203.796821,0.0002268,2]
[419707771,1775327454836,-203.79681329,0.0002268,2]
[419707772,1775327454846,-161.871258,0.0002268,2]
[419707773,1775327454855,-161.871258,0.0002268,2]
[419707774,1775327454865,-161.871258,0.0002268,2]
[419707775,1775327454875,-161.871258,0.0002268,2]
[419707776,1775327454884,-161.871258,0.0002268,2]
[419707777,1775327454894,-161.871258,0.0002268,2]
[419707778,1775327454904,-161.871258,0.0002268,2]
[419707779,1775327454913,-161.871258,0.0002268,2]
[419707780,1775327454923,-161.871258,0.0002268,2]
[419707781,1775327454932,-161.871258,0.0002268,2]
[419707782,1775327454941,-161.871258,0.0002268,2]
[419707783,1775327454951,-161.871258,0.0002268,2]
[419707784,1775327454961,-161.871258,0.0002268,2]
[419707785,1775327454970,-161.871258,0.0002268,2]
[419707786,1775327454980,-161.871258,0.0002268,2]
[419707787,1775327454989,-161.871252,0.0002268,2]
[419707788,1775327454999,-160.861666,0.0002268,2]
[419707789,1775327455009,-160.861666,0.0002268,2]
[419707790,1775327455020,-160.861666,0.0002268,2]
[419707791,1775327455030,-160.861666,0.0002268,2]
[419707792,1775327455040,-160.861666,0.0002268,2]
[419707793,1775327455050,-160.861666,0.0002268,2]
[419707794,1775327455060,-160.861666,0.0002268,2]
[419707795,1775327455070,-160.861666,0.0002268,2]
[419707796,1775327455079,-160.861666,0.0002268,2]
[419707797,1775327455089,-160.861666,0.0002268,2]
[419707798,1775327455099,-160.861666,0.0002268,2]
[419707799,1775327455108,-160.861666,0.0002268,2]
[419707800,1775327455118,-160.861666,0.0002268,2]
[419707801,1775327455127,-160.861666,0.0002268,2]
[419707802,1775327455136,-160.861666,0.0002268,2]
[419707803,1775327455146,-160.861674,0.0002268,2]
[419707804,1775327455155,-2159.551081,0.0002268,2]
[419707805,1775327455165,-2159.551081,0.0002268,2]
[419707806,1775327455175,-2159.551081,0.0002268,2]
[419707807,1775327455184,-2159.551081,0.0002268,2]
[419707808,1775327455194,-2159.551081,0.0002268,2]
[419707809,1775327455203,-2159.551081,0.0002268,2]
[419707810,1775327455212,-2159.551081,0.0002268,2]
[419707811,1775327455222,-2159.551081,0.0002268,2]
[419707812,1775327455232,-2159.551081,0.0002268,2]
[419707813,1775327455241,-2159.551081,0.0002268,2]
[419707814,1775327455251,-2159.551081,0.0002268,2]
[419707815,1775327455261,-2159.551081,0.0002268,2]
[419707816,1775327455270,-2159.551081,0.0002268,2]
[419707817,1775327455280,-2159.551081,0.0002268,2]
[419707818,1775327455289,-2159.551081,0.0002268,2]
[419707819,1775327455298,-2159.551074,0.0002268,2]
[419707820,1775327455308,-151.0,0.0002268,2]
[419707821,1775327455317,-151.0,0.0002268,2]
[419707822,1775327455327,-151.0,0.0002268,2]
[419707823,1775327455336,-151.0,0.0002268,2]
[419707824,1775327455346,-151.0,0.0002268,2]
[419707825,1775327455356,-151.0,0.0002268,2]
[419707826,1775327455365,-151.0,0.0002268,2]
[419707827,1775327455374,-151.0,0.0002268,2]
[419707828,1775327455383,-151.0,0.0002268,2]
[419707829,1775327455393,-294.261277,0.0002268,2]
[419707830,1775327455403,-151.0,0.0002268,2]
[419707831,1775327455413,-151.0,0.0002268,2]
[419707832,1775327455424,-151.0,0.0002268,2]
[419707833,1775327455434,-151.0,0.0002268,2]
[419707834,1775327455443,-151.0,0.0002268,2]
[419707835,1775327455453,-151.0,0.0002268,2]
[419707836,1775327455463,-151.0,0.0002268,2]
[419707837,1775327455473,-151.0,0.0002268,2]
[419707838,1775327455482,-151.0,0.0002268,2]
[419707839,1775327455492,-151.0,0.0002268,2]
[419707840,1775327455501,-162.002364,0.0002268,2]
[419707841,1775327455511,-256.109382,0.0002268,2]
[419707842,1775327455520,-256.109382,0.0002268,2]
[419707843,1775327455530,-533.55893,0.0002268,2]
[419707844,1775327455539,-256.109382,0.0002268,2]
[419707845,1775327455549,-533.55893,0.0002268,2]
[419707846,1775327455559,-256.109389,0.0002268,2]
[419707847,1775327455568,-533.55893,0.0002268,2]
[419707848,1775327455578,-533.558935,0.0002268,2]
[419707849,1775327455587,-151.0,0.0002268,2]
[419707850,1775327455596,-151.0,0.0002268,2]
[419707851,1775327455606,-151.0,0.0002268,2]
[419707852,1775327455616,-151.0,0.0002268,2]
[419707853,1775327455625,-151.0,0.0002268,2]
[419707854,1775327455634,-202.415776,0.0002268,2]
[419707855,1775327455644,-202.415776,0.0002268,2]
[419707856,1775327455654,-151.0,0.0002268,2]
[419707857,1775327455663,-202.415776,0.0002268,2]
[419707858,1775327455672,-280.382243,0.0002268,2]
[419707859,1775327455682,-202.415784,0.0002268,2]
[419707860,1775327455691,-280.382243,0.0002268,2]
[419707861,1775327455701,-280.382243,0.0002268,2]
[419707862,1775327455711,-280.382248,0.0002268,2]
[419707863,1775327455720,-151.0,0.0002278,2]
[419707864,1775327455730,-151.0,0.0002278,2]
[419707865,1775327455740,-151.0,0.0002278,2]
[419707866,1775327455750,-31498.69240776,0.0002278,3]
[419707867,1775327455760,-247.68,0.00022827,7]
[419707868,1775327455769,-1000.0,0.000229,2]
[419707869,1775327455779,-251.15,0.00022975,7]
[419707870,1775327455789,-349.24224925,0.00022979,2]
[419707871,1775327455798,-170.63107389,0.00022979,2]
[419707872,1775327455808,-216.9329127,0.00022979,2]
[419707873,1775327455817,-247.9233288,0.00022979,2]
[419707874,1775327455827,-179.11726086,0.00022979,2]
[419707875,1775327455836,-387.38020125,0.00022979,2]
[419707876,1775327455846,-557.26966231,0.00022979,2]
[419707877,1775327455855,-198.32299933,0.00022979,2]
[419707878,1775327455865,-306.82879707,0.00022979,2]
[419707879,1775327455874,-270.83333333,0.00023,2]
[419707880,1775327455883,-152.0,0.00023,2]
[419707881,1775327455893,-193.0,0.00023,2]
[419707882,1775327455903,-79259.18271855,0.00023004,2]
[419707883,1775327455912,-600.0,0.00023028,10]
[419707884,1775327455921,-500.0,0.00023114,2]
[419707885,1775327455931,-2398.4119403,0.00023114,2]
[419707886,1775327455940,-1003.77362544,0.00023121,2]
[419707887,1775327455949,-500.0,0.00023121,2]
[419707888,1775327455959,-47332.02483583,0.0002318,2]
[419707889,1775327455968,-455.3221879,0.00023398,2]
[419707890,1775327455977,-1000.0,0.000234,2]
[419707891,1775327455987,-152.0,0.00023408,2]
[419707892,1775327455996,-263.05745156,0.00023662,2]
[419707893,1775327456006,-644.0,0.0002374,2]
[419707894,1775327456017,-857.59474859,0.00023813,2]
[419707895,1775327456027,-193.313445,0.00023907,2]
[419707896,1775327456036,-557.4815401,0.00023964,2]
[419707897,1775327456046,-5467.61290127,0.00023998,2]
[419707984,1775328638730,-4655.82,0.00011782,2]
[419707985,1775328638740,-5000.0,0.00011901,2]
[419707986,1775328638751,-5000.0,0.00012021,2]
[419707987,1775328638760,-589.0,0.00012021,2]
[419707988,1775328638770,-1000.0,0.00013699,2]
[419707989,1775328638780,-300.0,0.00013832,2]
[419707990,1775328638789,-300.0,0.00013832,2]
[419707991,1775328638798,-300.0,0.00013832,2]
[419707993,1775328638808,-300.0,0.00013832,2]
[419707994,1775328638817,-300.0,0.00013832,2]
[419707995,1775328638826,-300.0,0.00013832,2]
[419707996,1775328638835,-300.0,0.00013832,2]
[419707997,1775328638844,-300.0,0.00013832,2]
[419707998,1775328638853,-300.0,0.00013832,2]
[419707999,1775328638863,-300.0,0.00013832,2]
[419708000,1775328638872,-300.0,0.00013832,2]
[419708002,1775328638881,-300.0,0.00013832,2]
[419708004,1775328638891,-300.0,0.00013832,2]
[419708006,1775328638900,-300.0,0.00013832,2]
[419708008,1775328638910,-300.0,0.00013832,2]
[419708010,1775328638919,-500.477509,0.00021882,2]
[419708012,1775328638928,-153.0,0.00022,2]
[419708014,1775328638936,-174.0,0.00022,2]
[419708016,1775328638945,-152.0,0.00022391,2]
[419708017,1775328638955,-316.18,0.00022391,2]
[419708019,1775328638963,-153.05797643,0.00022979,2]
[419708021,1775328638973,-153.0,0.00023,2]
[419708023,1775328638982,-174.0,0.00023,2]
[419708025,1775328638991,-270.83333333,0.00023,2]
[419708027,1775328639000,-163.0,0.00023,7]
[419708029,1775328639010,-600.0,0.00023031,10]
[419708031,1775328639019,-163.0,0.00023374,7]
[419708033,1775328639028,-609.79821784,0.00023697,2]
[419708036,1775328639038,-3717.78101163,0.00023698,2]
[419708038,1775328639047,-524.49965595,0.00023773,2]
[419708039,1775328639056,-503.52109858,0.00023773,2]
[419708041,1775328639066,-500.0,0.00023773,2]
[419708043,1775328639075,-167.98387144,0.00023773,2]
[419708045,1775328639085,-500.0,0.00023797,2]
[419708047,1775328639094,-500.0,0.00023797,2]
[419708049,1775328639104,-500.0,0.00023797,2]
[419708052,1775328639113,-500.0,0.00023797,2]
[419708053,1775328639123,-500.0,0.00023797,2]
[419708056,1775328639133,-500.0,0.00023797,2]
[419708058,1775328639142,-500.0,0.00023797,2]
[419708059,1775328639151,-500.0,0.00023797,2]
[419708061,1775328639161,-500.0,0.00023797,2]
[419708063,1775328639170,-500.0,0.00023797,2]
[419708065,1775328639179,-500.0,0.00023797,2]
[419708067,1775328639189,-500.0,0.00023797,2]
[419708069,1775328639198,-500.0,0.00023797,2]
[419708072,1775328639208,-152.3177064,0.00023797,2]
[419708074,1775328639217,-500.0,0.00023797,2]
[419708075,1775328639227,-500.0,0.00023797,2]
[419708077,1775328639236,-500.0,0.00023797,2]
[419708079,1775328639245,-300.0,0.00023797,2]
[419708081,1775328639255,-694632.55939977,0.00023798,2]
[419708092,1775328639350,-783671.50637721,0.00023798,2]
[419708796,1775328648349,-571.72983239,0.0002352,2]
[419708797,1775328648359,-5000.0,0.0002356,2]
[419708798,1775328648370,-343.09582665,0.00023798,2]
[419708799,1775328648611,-12627.66902161,0.00023798,2]
[419708815,1775329285614,1356.11797688,0.00012897,2]
[419708819,1775329327728,-300.0,0.00013026,2]
[419708858,1775329670773,550.2076244,0.0003287,120]
[419708931,1775329837953,-293.0,0.00012766,2]
[419708933,1775329837963,-327.0,0.00012766,2]
[419708935,1775329837973,-601.0,0.00012766,2]
[419708937,1775329837982,-138.0,0.00013699,2]
[419708941,1775329838007,-862.0,0.00013699,2]
[419708943,1775329838016,-300.0,0.00013832,2]
[419708945,1775329838026,-300.0,0.00013832,2]
[419708947,1775329838036,-300.0,0.00013832,2]
[419708949,1775329838045,-300.0,0.00013832,2]
[419708951,1775329838055,-300.0,0.00013832,2]
[419708953,1775329838064,-300.0,0.00013832,2]
[419708955,1775329838073,-300.0,0.00013832,2]
[419708957,1775329838083,-300.0,0.00013832,2]
[419708959,1775329838093,-300.0,0.00013832,2]
[419708961,1775329838102,-300.0,0.00013832,2]
[419708963,1775329838112,-300.0,0.00013832,2]
[419708965,1775329838122,-300.0,0.00013832,2]
[419708967,1775329838132,-300.0,0.00013832,2]
[419708969,1775329838141,-300.0,0.00013832,2]
[419708971,1775329838151,-300.0,0.00013832,2]
[419708973,1775329838160,-600.0,0.00014108,2]
[419708975,1775329838170,-720.0,0.00015518,2]
[419708977,1775329838180,-864.0,0.0001707,2]
[419708979,1775329838190,-8301.7076597,0.00018136,2]
[419708981,1775329838199,-1000.0,0.00018777,2]
[419708983,1775329838209,-1000.0,0.00020655,2]
[419708985,1775329838218,-244.0,0.00020655,2]
[419708987,1775329838227,-193.313445,0.00021475,2]
[419708989,1775329838236,-153.0,0.00022,2]
[419708991,1775329838245,-156.0,0.00022,2]
[419708993,1775329838255,-163.0,0.00022,2]
[419708995,1775329838265,-1000.0,0.0002272,10]
[419708997,1775329838274,-492.0,0.0002272,10]
[419708999,1775329838283,-154.0,0.00023,2]
[419709001,1775329838292,-156.0,0.00023,2]
[419709003,1775329838301,-163.0,0.00023014,7]
[419709005,1775329838311,-270.83333333,0.00023124,2]
[419709007,1775329838321,-663.86748283,0.00023169,2]
[419709009,1775329838331,-500.0,0.00023269,2]
[419709011,1775329838340,-500.0,0.00023269,2]
[419709013,1775329838349,-500.0,0.00023269,2]
[419709015,1775329838359,-500.0,0.00023269,2]
[419709017,1775329838369,-500.0,0.00023269,2]
[419709019,1775329838378,-500.0,0.00023269,2]
[419709021,1775329838388,-500.0,0.00023269,2]
[419709023,1775329838397,-421.51867119,0.00023269,2]
[419709025,1775329838407,-500.0,0.00023269,2]
[419709027,1775329838417,-500.0,0.00023269,2]
[419709029,1775329838427,-500.0,0.00023269,2]
[419709031,1775329838437,-500.0,0.00023269,2]
[419709033,1775329838447,-500.0,0.00023269,2]
[419709035,1775329838456,-500.0,0.00023269,2]
[419709038,1775329838466,-500.0,0.00023269,2]
[419709040,1775329838476,-500.0,0.00023269,2]
[419709042,1775329838485,-400.0,0.00023269,2]
[419709044,1775329838494,-24451.58977608,0.0002327,2]
[419709046,1775329838507,-3686.12324199,0.0002327,2]
[419709048,1775329838518,-309864.30115935,0.0002327,2]
[419709824,1775329847423,-812.09701141,0.0002327,2]
[419709826,1775329847478,-15441.96151664,0.0002327,2]
[419709827,1775329847488,-13763.17603556,0.0002327,2]
[419709871,1775331038077,-5000.0,0.00011782,2]
[419709873,1775331038087,-586.0,0.00011782,2]
[419709875,1775331038097,-5000.0,0.00011901,2]
[419709877,1775331038106,-5000.0,0.00012021,2]
[419709879,1775331038117,-1000.0,0.00013699,2]
[419709881,1775331038126,-223.0976442,0.00020382,2]
[419709883,1775331038135,-564.746398,0.00020401,2]
[419709885,1775331038145,-226.65485638,0.00021217,2]
[419709887,1775331038154,-353.79406487,0.00021217,2]
[419709889,1775331038163,-156.0,0.00022,2]
[419709891,1775331038173,-163.0,0.00022,2]
[419709893,1775331038182,-151.0,0.00022534,2]
[419709895,1775331038191,-151.0,0.00022534,2]
[419709897,1775331038200,-151.0,0.00022534,2]
[419709899,1775331038210,-151.0,0.00022534,2]
[419709901,1775331038219,-151.0,0.00022534,2]
[419709903,1775331038228,-151.0,0.00022538,2]
[419709905,1775331038238,-151.0,0.00022538,2]
[419709907,1775331038247,-500.0,0.00022969,2]
[419709909,1775331038256,-500.0,0.00022969,2]
[419709911,1775331038265,-500.0,0.00022969,2]
[419709913,1775331038275,-500.0,0.00022969,2]
[419709915,1775331038284,-500.0,0.00022969,2]
[419709917,1775331038293,-500.0,0.00022969,2]
[419709919,1775331038303,-425.06306984,0.00022969,2]
[419709921,1775331038312,-500.0,0.00022969,2]
[419709923,1775331038321,-500.0,0.00022969,2]
[419709925,1775331038330,-500.0,0.00022969,2]
[419709927,1775331038339,-500.0,0.00022969,2]
[419709929,1775331038348,-261608.46560217,0.0002297,2]
[419709931,1775331038357,-5000.0,0.0002297,2]
[419709933,1775331038366,-14941.6006,0.0002297,2]
[419709935,1775331038375,-156.0,0.00023,2]
[419709937,1775331038385,-163.0,0.00023014,7]
[419709939,1775331038394,-3631.9368089,0.00023031,2]
[419709941,1775331038403,-755.26887769,0.00023069,2]
[419709943,1775331038412,-200.0,0.0002307,2]
[419709945,1775331038422,-36351.04629986,0.0002307,2]
[419709947,1775331038433,-37992.9635645,0.0002307,2]
[419710727,1775331046310,-7807.09937334,0.0002307,2]
[419710731,1775331046342,-1245.35456437,0.0002307,2]
[419710735,1775331046368,-3936.31747767,0.0002307,2]
[419710879,1775332232139,-567.76,0.00012459,2]
[419711031,1775332238443,-919.86834896,0.00012459,2]
[419711043,1775332238548,-478.85715799,0.00012459,2]
[419711543,1775332243478,-851.75105233,0.00012459,2]
[419711545,1775332243490,-2181.76344072,0.00012459,2]
[419711547,1775332243500,-598.0,0.00012585,2]
[419711549,1775332243509,-180.2108709,0.00013233,14]
[419711551,1775332243519,-1000.0,0.00013699,2]
[419711553,1775332243529,-174.92340164,0.00019148,2]
[419711555,1775332243539,-273.31781506,0.00019148,2]
[419711557,1775332243548,-393.18407603,0.00019163,2]
[419711560,1775332243559,-446.796895,0.00019163,2]
[419711562,1775332243568,-158.397364,0.00019522,2]
[419711564,1775332243578,-7993.22279688,0.0002,2]
[419711566,1775332243588,-1000.0,0.000211,2]
[419711568,1775332243597,-3910.4768827,0.00021803,2]
[419711570,1775332243606,-156.0,0.00022,2]
[419711572,1775332243616,-153.0,0.00022,2]
[419711574,1775332243625,-500.0,0.00022769,2]
[419711576,1775332243635,-500.0,0.00022769,2]
[419711578,1775332243644,-210.97154258,0.00022769,2]
[419711580,1775332243653,-500.0,0.00022769,2]
[419711582,1775332243663,-500.0,0.00022769,2]
[419711584,1775332243671,-500.0,0.00022769,2]
[419711586,1775332243680,-500.0,0.00022769,2]
[419711588,1775332243691,-500.0,0.00022769,2]
[419711590,1775332243700,-500.0,0.00022769,2]
[419711592,1775332243709,-500.0,0.00022769,2]
[419711594,1775332243718,-200.0,0.0002277,2]
[419711596,1775332243728,-1168.219321,0.0002277,2]
[419711598,1775332243739,-92090.7476363,0.0002277,2]
[419711849,1775332246367,-7722.27492945,0.0002277,2]
[419711877,1775332246633,-10066.48484269,0.0002277,2]
[419719386,1775332328077,500.0,0.00034898,120]
[419719421,1775332328410,500.0,0.00034898,120]
[419719432,1775332328513,500.0,0.00034898,120]
[419719457,1775332328746,500.0,0.00034898,120]
[419719481,1775332328974,500.0,0.00034898,120]
[419719504,1775332329197,500.0,0.00034898,120]
[419719529,1775332329445,182.26165419,0.00034898,120]
[419720345,1775332364179,265.05365655,0.00034898,120]
[419720346,1775332364212,260.81815358,0.00034898,120]
[419720347,1775332364242,155.08737003,0.00034898,120]
[419720348,1775332364272,172.76745387,0.00034898,120]
[419720349,1775332364497,214.70695761,0.00034898,120]
[419720350,1775332364596,265.05365655,0.00034898,120]
[419720351,1775332364628,260.81815358,0.00034898,120]
[419720352,1775332364662,172.76745387,0.00034898,120]
[419720353,1775332364800,210.34640352,0.00028791,120]
[419720354,1775332364893,265.05365655,0.00034898,120]
[419720355,1775332364925,260.81815358,0.00034898,120]
[419720356,1775332364955,172.76745387,0.00034898,120]
[419720357,1775332365202,260.81815358,0.00034898,120]
[419720358,1775332365497,260.81815358,0.00034898,120]
[419720359,1775332365788,260.81815358,0.00034898,120]
[419720360,1775332366068,260.81815358,0.00034898,120]
[419720361,1775332900013,-559.06407012,0.00013699,2]
[419720362,1775333401054,1475.11,0.00031,120]
[419720364,1775333413594,504.23912266,0.00034907,120]
[419720398,1775333432513,-700.34007118,0.0001,7]
[419720399,1775333432523,-3502.21919356,0.000102,5]
[419720400,1775333432566,-961.04889694,0.000102,5]
[419720429,1775333438484,-15739.89102988,0.000102,5]
[419720431,1775333438494,-5000.0,0.00013292,2]
[419720433,1775333438503,-609.0,0.00013292,2]
[419720435,1775333438512,-1000.0,0.00013699,2]
[419720437,1775333438521,-172.10632339,0.00021,2]
[419720439,1775333438530,-309.48159073,0.00021,2]
[419720441,1775333438539,-157.0,0.00022,2]
[419720443,1775333438548,-157.0,0.00022,2]
[419720445,1775333438557,-252.944,0.00022217,2]
[419720447,1775333438566,-819.10738914,0.000224,2]
[419720449,1775333438575,-3982.98796389,0.00022473,2]
[419720451,1775333438584,-5600.0,0.000225,5]
[419720453,1775333438593,-440.0,0.00022559,2]
[419720454,1775333438602,-184.0,0.00022559,2]
[419720456,1775333438611,-500.0,0.00022569,2]
[419720458,1775333438620,-500.0,0.00022569,2]
[419720460,1775333438630,-500.0,0.00022569,2]
[419720462,1775333438639,-297.68007981,0.00022569,2]
[419720464,1775333438648,-500.0,0.00022569,2]
[419720466,1775333438657,-500.0,0.00022569,2]
[419720468,1775333438666,-500.0,0.00022569,2]
[419720470,1775333438676,-200.0,0.0002257,2]
[419720472,1775333438685,-812.09701141,0.0002257,2]
[419720474,1775333438694,-169459.30775085,0.0002257,2]
[419720477,1775333438705,-2923.86707462,0.0002257,2]
[419720479,1775333438716,-23982.22976876,0.0002257,2]
[419720481,1775333438731,-1195.35669466,0.0002257,2]
[419720623,1775333443579,-5000.0,0.00022344,2]
[419720624,1775333443589,-5412.76468092,0.0002257,2]
[419720625,1775333443600,-4074.14783359,0.0002257,2]
[419720633,1775333446834,-624.1780488,0.0002257,2]
[419720634,1775333446888,-18026.19509804,0.0002257,2]
[419720636,1775334611895,364.0,0.0003287,120]
[419720655,1775334632496,-2334.10422389,0.00012386,2]
[419720661,1775334632551,-2665.89577611,0.00012386,2]
[419720663,1775334632560,-5000.0,0.00012511,2]
[419720665,1775334632570,-300.0,0.00012637,2]
[419720667,1775334632579,-300.0,0.00012637,2]
[419720669,1775334632589,-93.04410571,0.00012637,2]
[419720671,1775334632600,-304.79284068,0.00012637,2]
[419720737,1775334638794,-385.16305361,0.00012637,2]
[419720739,1775334638804,-599.0,0.00012637,2]
[419720741,1775334638815,-1000.0,0.00013699,2]
[419720743,1775334638825,-379.9717127,0.0002073,2]
[419720745,1775334638834,-896.972332,0.00021087,2]
[419720747,1775334638845,-3093.2473669,0.0002179,2]
[419720749,1775334638855,-180.8234864,0.0002179,2]
[419720751,1775334638866,-436.97,0.000218,2]
[419720753,1775334638877,-320.74731733,0.00021821,2]
[419720755,1775334638887,-577.34517119,0.00021821,2]
[419720758,1775334638899,-1026.39141545,0.00021821,2]
[419720760,1775334638912,-1603.73658664,0.00021821,2]
[419720762,1775334638924,-2309.38068477,0.00021821,2]
[419720765,1775334638937,-3143.32370982,0.00021821,2]
[419720767,1775334638949,-4105.56566181,0.00021821,2]
[419720769,1775334638963,-5196.10654072,0.00021821,2]
[419720772,1775334638974,-6408.53140022,0.00021821,2]
[419720774,1775334638985,-177.7943012,0.00021821,2]
[419720776,1775334638997,-320.02974216,0.00021821,2]
[419720778,1775334639010,-568.94176383,0.00021821,2]
[419720781,1775334639022,-888.97150599,0.00021821,2]
[419720783,1775334639033,-1278.83884965,0.00021821,2]
[419720785,1775334639045,-158.0,0.00022,2]
[419720787,1775334639056,-855.18519646,0.0002227,2]
[419720789,1775334639068,-3584.68916742,0.00022273,2]
[419720792,1775334639080,-167.21897207,0.00022369,2]
[419720794,1775334639091,-500.0,0.00022369,2]
[419720796,1775334639103,-194.20555937,0.00022369,2]
[419720798,1775334639114,-500.0,0.00022369,2]
[419720801,1775334639127,-500.0,0.00022369,2]
[419720803,1775334639139,-447.77523146,0.00022369,2]
[419720805,1775334639151,-500.0,0.00022369,2]
[419720807,1775334639163,-500.0,0.00022369,2]
[419720809,1775334639175,-500.0,0.00022369,2]
[419720811,1775334639185,-500.0,0.00022369,2]
[419720814,1775334639197,-500.0,0.00022369,2]
[419720816,1775334639208,-553.27876825,0.00022369,2]
[419720818,1775334639219,-402.43031725,0.00022369,2]
[419720820,1775334639230,-500.0,0.00022369,2]
[419720822,1775334639241,-151.0,0.0002237,2]
[419720825,1775334639251,-200.0,0.0002237,2]
[419720827,1775334639262,-486.8416,0.0002237,2]
[419720829,1775334639272,-486.8416,0.0002237,2]
[419720831,1775334639285,-486.8416,0.0002237,2]
[419720833,1775334639295,-486.8416,0.0002237,2]
[419720835,1775334639307,-151.0,0.0002237,2]
[419720838,1775334639318,-153.74,0.0002237,2]
[419720840,1775334639330,-200.0,0.0002237,2]
[419720842,1775334639342,-151.0,0.0002237,2]
[419720844,1775334639354,-151.0,0.0002237,2]
[419720847,1775334639366,-151.0,0.0002237,2]
[419720849,1775334639377,-239807.15256548,0.0002237,2]
[419721228,1775334643242,-1549.99924154,0.0002237,2]
[419721249,1775334643352,-520.09031662,0.0002237,2]
[419721335,1775334644265,-845.36211525,0.0002237,2]
[419721342,1775334644320,-6873.16383452,0.0002237,2]
[419721608,1775334646871,-31682.13415,0.0002237,2]
[419721630,1775334647087,-3569.46357376,0.0002237,2]
[419721637,1775334647143,-18827.4128275,0.0002237,2]
[419721639,1775334647154,-9696.50985768,0.0002237,2]
[419721981,1775335838292,-5000.0,0.00012897,2]
[419721983,1775335838302,-603.0,0.00012897,2]
[419721985,1775335838311,-1000.0,0.00013699,2]
[419721987,1775335838320,-1497.02180707,0.00014175,2]
[419721989,1775335838329,-193.53814588,0.00020692,2]
[419721991,1775335838338,-167.607993,0.00021366,2]
[419721993,1775335838347,-250.0,0.00021464,2]
[419721995,1775335838356,-943.93241332,0.00022,12]
[419721997,1775335838366,-158.0,0.00022,2]
[419721999,1775335838374,-366.0,0.00022091,2]
[419722001,1775335838383,-50000.0,0.00022093,2]
[419722003,1775335838392,-174.61919141,0.00022093,2]
[419722005,1775335838401,-578.20924308,0.00022093,2]
[419722007,1775335838410,-181.08010149,0.00022093,2]
[419722009,1775335838420,-500.0,0.00022093,2]
[419722011,1775335838429,-187.78006525,0.00022093,2]
[419722013,1775335838438,-194.72792766,0.00022093,2]
[419722014,1775335838448,-201.93286099,0.00022093,2]
[419722017,1775335838458,-209.40437684,0.00022093,2]
[419722018,1775335838467,-217.15233878,0.00022093,2]
[419722020,1775335838476,-225.18697532,0.00022093,2]